[Event "European Women Rapid-ch 2023"]
[Site "Monaco"]
[Date "2024.01.14"]
[Round "8.17"]
[White "Guichard, Pauline"]
[Black "Rodriguez Redondo, Adhara"]
[Result "1-0"]
[ECO "E51"]
[WhiteElo "2385"]
[BlackElo "2130"]
[Annotator "RC"]
[PlyCount "79"]
[EventDate "2023.12.19"]
[EventType "swiss"]
[EventCountry "MNC"]
[SourceTitle "playchess.com"]
[Source "ChessBase"]
[SourceQuality "1"]
[TimeControl "900+10"]

1. d4 {[%emt 0:00:01]} Nf6 {[%emt 0:00:03]} 2. c4 {[%emt 0:00:02]} e6 {[%emt 0:00:04]} 3. Nc3 {[%emt 0:00:02]} Bb4 {[%emt 0:00:02]} 4. e3 {[%emt 0:00:01]} O-O {[%emt 0:00:06]} 5. Bd3 {[%emt 0:00:03]} d5 {[%emt 0:00:06]} 6. a3 {[%emt 0:00:02]} Be7 {[%emt 0:00:49]} 7. Nf3 {[%emt 0:00:06]} Nbd7 {[%emt 0:00:25]} 8. O-O {[%emt 0:00:08]} b6 {[%emt 0:00:04]} 9. cxd5 {[%emt 0:00:14]} exd5 {[%emt 0:00:04]} 10. b4 {[%emt 0:00:47]} a6 {[%emt 0:01:15]} 11. Qc2 {[%emt 0:00:37]} Bb7 {[%emt 0:00:10]} 12. Bb2 {[%emt 0:00:22]} Bd6 {[%emt 0:01:02]} 13. b5 {[%emt 0:00:25]} a5 {[%emt 0:00:06]} 14. a4 {[%emt 0:00:03]} Qe7 {[%emt 0:00:44]} 15. Qb3 {[%emt 0:00:02]} Rfe8 {[%emt 0:01:00]} 16. Ba3 {[%emt 0:00:18]} Ne4 {[%emt 0:01:52]} 17. Nxd5 {[%emt 0:02:01]} Qe6 {[%emt 0:04:38]} 18. Bc4 {[%emt 0:00:33]} Qg6 {[%emt 0:00:15]} 19. Bxd6 {[%emt 0:01:08]} Nxd6 {[%emt 0:00:12]} 20. Nf4 {[%emt 0:00:07]} Qh6 {[%emt 0:02:12]} 21. Bd5 {[%emt 0:00:12]} Nf6 {[%emt 0:00:59]} 22. Bxb7 {[%emt 0:00:33]} Nxb7 {[%emt 0:00:01]} 23. Rac1 {[%emt 0:00:26]} Rac8 {[%emt 0:00:34]} 24. Rc6 {[%emt 0:00:34]} Nd8 {[%emt 0:00:31]} 25. Rc2 {[%emt 0:00:02]} Ne6 {[%emt 0:00:25]} 26. Nxe6 {[%emt 0:00:07]} Rxe6 {[%emt 0:00:01]} 27. Rfc1 {[%emt 0:00:12]} Re7 {[%emt 0:01:00]} 28. Rc6 {[%emt 0:00:36]} Qh5 {[%emt 0:00:09]} 29. Rxb6 {[%emt 0:00:28]} Rce8 {[%emt 0:00:41]} 30. Rbc6 {[%emt 0:00:43]} Ne4 {[%emt 0:00:24]} 31. Rxc7 {[%emt 0:00:45]} g5 {[%emt 0:00:11]} 32. Rxe7 {[%emt 0:00:38]} Rxe7 {[%emt 0:00:01]} 33. Qd5 {[%emt 0:00:06]} Kg7 {[%emt 0:00:19]} 34. b6 {[%emt 0:00:34]} Qh6 {[%emt 0:00:12]} 35. Rc6 {[%emt 0:01:28]} Qh5 {[%emt 0:00:11]} 36. b7 {[%emt 0:01:14]} Rxb7 {[%emt 0:00:10]} 37. Qxe4 {[%emt 0:00:15]} Qg4 {[%emt 0:00:10]} 38. Qe5+ {[%emt 0:01:13]} Kf8 {[%emt 0:00:09]} 39. h3 {[%emt 0:00:18]} Qd7 {[%emt 0:00:09]} 40. Qc5+ {[%emt 0:00:15]} 1-0

[Event "European Women Rapid-ch 2023"]
[Site "Monaco"]
[Date "2024.01.14"]
[Round "8.18"]
[White "Javakhishvili, Lela"]
[Black "Pavlidou, Ekaterini"]
[Result "1-0"]
[ECO "E12"]
[WhiteElo "2433"]
[BlackElo "2206"]
[Annotator "RC"]
[PlyCount "75"]
[EventDate "2023.12.19"]
[EventType "swiss"]
[EventCountry "MNC"]
[SourceTitle "playchess.com"]
[Source "ChessBase"]
[SourceQuality "1"]
[TimeControl "900+10"]

1. d4 {[%emt 0:00:01]} Nf6 {[%emt 0:00:02]} 2. Nf3 {[%emt 0:00:04]} e6 {[%emt 0:00:05]} 3. c4 {[%emt 0:00:08]} b6 {[%emt 0:00:15]} 4. a3 {[%emt 0:00:07]} Ba6 {[%emt 0:00:27]} 5. Qc2 {[%emt 0:00:05]} c5 {[%emt 0:00:27]} 6. d5 {[%emt 0:00:22]} exd5 {[%emt 0:00:24]} 7. cxd5 {[%emt 0:00:03]} d6 {[%emt 0:00:09]} 8. Nc3 {[%emt 0:00:07]} Nbd7 {[%emt 0:00:49]} 9. g3 {[%emt 0:00:25]} h6 {[%emt 0:01:08]} 10. Bg2 {[%emt 0:00:08]} g5 {[%emt 0:00:27]} 11. O-O {[%emt 0:00:10]} Bg7 {[%emt 0:00:00]} 12. Re1 {[%emt 0:00:20]} b5 {[%emt 0:01:04]} 13. h4 {[%emt 0:00:17]} g4 {[%emt 0:00:09]} 14. Nh2 {[%emt 0:00:06]} Qe7 {[%emt 0:01:08]} 15. Nf1 {[%emt 0:00:21]} O-O {[%emt 0:00:23]} 16. Ne3 {[%emt 0:00:09]} b4 {[%emt 0:00:37]} 17. axb4 {[%emt 0:00:16]} cxb4 {[%emt 0:00:01]} 18. Rxa6 {[%emt 0:00:12]} bxc3 {[%emt 0:00:02]} 19. Nf5 {[%emt 0:00:11]} Qd8 {[%emt 0:00:54]} 20. Rxd6 {[%emt 0:00:47]} Rc8 {[%emt 0:00:48]} 21. bxc3 {[%emt 0:00:38]} Ne8 {[%emt 0:00:10]} 22. Rc6 {[%emt 0:00:52]} Nb6 {[%emt 0:01:10]} 23. Nxh6+ {[%emt 0:01:43]} Kh8 {[%emt 0:00:15]} 24. Nxg4 {[%emt 0:01:20]} f5 {[%emt 0:00:01]} 25. Ne3 {[%emt 0:01:05]} Nd6 {[%emt 0:00:01]} 26. Ba3 {[%emt 0:00:35]} Rxc6 {[%emt 0:00:21]} 27. dxc6 {[%emt 0:00:02]} f4 {[%emt 0:00:14]} 28. gxf4 {[%emt 0:00:12]} Nbc8 {[%emt 0:00:16]} 29. Rd1 {[%emt 0:00:44]} Qxh4 {[%emt 0:00:22]} 30. Nd5 {[%emt 0:01:26]} Bh6 {[%emt 0:00:35]} 31. c4 {[%emt 0:00:22]} Rf7 {[%emt 0:01:17]} 32. Bb2+ {[%emt 0:00:25]} Bg7 {[%emt 0:00:26]} 33. Rd3 {[%emt 0:00:04]} Kg8 {[%emt 0:01:07]} 34. Rh3 {[%emt 0:00:03]} Qg4 {[%emt 0:00:20]} 35. Rg3 {[%emt 0:00:04]} Qh4 {[%emt 0:00:02]} 36. Rh3 {[%emt 0:00:14]} Qd8 {[%emt 0:00:17]} 37. Qh7+ {[%emt 0:00:07]} Kf8 {[%emt 0:00:01]} 38. Qh8+ {[%emt 0:00:09]} 1-0

[Event "European Women Rapid-ch 2023"]
[Site "Monaco"]
[Date "2024.01.14"]
[Round "8.19"]
[White "De Seroux, Camille"]
[Black "Zimina, Olga"]
[Result "0-1"]
[ECO "C48"]
[WhiteElo "2075"]
[BlackElo "2291"]
[Annotator "RC"]
[PlyCount "88"]
[EventDate "2023.12.19"]
[EventType "swiss"]
[EventCountry "MNC"]
[SourceTitle "playchess.com"]
[Source "ChessBase"]
[SourceQuality "1"]
[TimeControl "900+10"]

1. Nc3 {[%emt 0:02:56]} e5 {[%emt 0:00:06]} 2. Nf3 {[%emt 0:00:10]} Nc6 {[%emt 0:00:09]} 3. e4 {[%emt 0:00:05]} Nf6 {[%emt 0:00:07]} 4. Bb5 {[%emt 0:00:01]} Bd6 {[%emt 0:00:03]} 5. O-O {[%emt 0:00:09]} O-O {[%emt 0:00:03]} 6. d3 {[%emt 0:00:07]} h6 {[%emt 0:00:28]} 7. Ne2 {[%emt 0:00:10]} Re8 {[%emt 0:00:20]} 8. Ng3 {[%emt 0:00:13]} Bf8 {[%emt 0:00:04]} 9. h3 {[%emt 0:00:17]} g6 {[%emt 0:00:14]} 10. b3 {[%emt 0:01:09]} Nd4 {[%emt 0:01:38]} 11. Bc4 {[%emt 0:03:09]} c6 {[%emt 0:00:28]} 12. c3 {[%emt 0:01:16]} Nxf3+ {[%emt 0:00:19]} 13. Qxf3 {[%emt 0:00:03]} b5 {[%emt 0:00:10]} 14. Bxf7+ {[%emt 0:00:39]} Kxf7 {[%emt 0:00:01]} 15. d4 {[%emt 0:00:08]} d6 {[%emt 0:00:45]} 16. Rd1 {[%emt 0:00:13]} Qc7 {[%emt 0:01:15]} 17. c4 {[%emt 0:00:16]} Bg7 {[%emt 0:01:21]} 18. cxb5 {[%emt 0:00:15]} cxb5 {[%emt 0:00:29]} 19. Ba3 {[%emt 0:00:06]} Kg8 {[%emt 0:00:27]} 20. Rac1 {[%emt 0:00:12]} Qf7 {[%emt 0:00:47]} 21. Bxd6 {[%emt 0:00:34]} exd4 {[%emt 0:00:12]} 22. Rc7 {[%emt 0:00:58]} Nd7 {[%emt 0:00:12]} 23. Qd3 {[%emt 0:01:48]} Qe6 {[%emt 0:00:33]} 24. e5 {[%emt 0:01:03]} Nxe5 {[%emt 0:00:22]} 25. Qxb5 {[%emt 0:00:16]} Bd7 {[%emt 0:00:38]} 26. Qc5 {[%emt 0:01:01]} d3 {[%emt 0:01:39]} 27. Ne4 {[%emt 0:00:50]} Nf7 {[%emt 0:00:35]} 28. f3 {[%emt 0:00:59]} Nxd6 {[%emt 0:00:19]} 29. Nxd6 {[%emt 0:00:04]} Re7 {[%emt 0:01:36]} 30. Ne4 {[%emt 0:00:27]} Be5 {[%emt 0:00:51]} 31. Rxa7 {[%emt 0:00:16]} Rxa7 {[%emt 0:00:06]} 32. Qxa7 {[%emt 0:00:02]} Bc6 {[%emt 0:00:17]} 33. Qe3 {[%emt 0:00:15]} Bb5 {[%emt 0:00:11]} 34. Qxh6 {[%emt 0:00:18]} Qf5 {[%emt 0:01:05]} 35. Re1 {[%emt 0:00:20]} Bf4 {[%emt 0:00:54]} 36. Qh4 {[%emt 0:00:06]} g5 {[%emt 0:00:52]} 37. Qh6 {[%emt 0:00:02]} Re6 {[%emt 0:00:11]} 38. Qh5 {[%emt 0:00:11]} d2 {[%emt 0:00:11]} 39. Rd1 {[%emt 0:00:14]} Be3+ {[%emt 0:01:04]} 40. Kh1 {[%emt 0:00:02]} Be2 {[%emt 0:00:13]} 41. Ng3 {[%emt 0:00:04]} Qc2 {[%emt 0:00:15]} 42. Nxe2 {[%emt 0:00:33]} Qxd1+ {[%emt 0:00:01]} 43. Kh2 {[%emt 0:00:02]} Qxe2 {[%emt 0:00:08]} 44. Qg4 {[%emt 0:00:01]} Bf4+ {[%emt 0:00:02]} 0-1

[Event "European Women Rapid-ch 2023"]
[Site "Monaco"]
[Date "2024.01.14"]
[Round "8.20"]
[White "Hrebenshchykova, Yelyzaveta"]
[Black "Khurtsilava, Inga"]
[Result "1/2-1/2"]
[ECO "B38"]
[WhiteElo "2275"]
[BlackElo "2186"]
[Annotator "RC"]
[PlyCount "142"]
[EventDate "2023.12.19"]
[EventType "swiss"]
[EventCountry "MNC"]
[SourceTitle "playchess.com"]
[Source "ChessBase"]
[SourceQuality "1"]
[TimeControl "900+10"]

1. e4 {[%emt 0:00:01]} c5 {[%emt 0:00:02]} 2. Nf3 {[%emt 0:00:01]} Nc6 {[%emt 0:00:00]} 3. d4 {[%emt 0:00:30]} cxd4 {[%emt 0:00:02]} 4. Nxd4 {[%emt 0:00:01]} g6 {[%emt 0:00:03]} 5. c4 {[%emt 0:00:06]} Bg7 {[%emt 0:00:03]} 6. Be3 {[%emt 0:00:01]} Nf6 {[%emt 0:00:48]} 7. Nc3 {[%emt 0:00:02]} O-O {[%emt 0:00:16]} 8. Be2 {[%emt 0:00:24]} d6 {[%emt 0:00:21]} 9. O-O {[%emt 0:00:14]} Bd7 {[%emt 0:00:07]} 10. h3 {[%emt 0:00:42]} a6 {[%emt 0:00:12]} 11. Qc2 {[%emt 0:03:14]} Rc8 {[%emt 0:00:15]} 12. Nxc6 {[%emt 0:00:20]} Bxc6 {[%emt 0:00:18]} 13. a4 {[%emt 0:03:15]} a5 {[%emt 0:02:29]} 14. Rad1 {[%emt 0:00:49]} Nd7 {[%emt 0:00:15]} 15. Bg4 {[%emt 0:00:48]} Qe8 {[%emt 0:05:56]} 16. Bd4 {[%emt 0:01:31]} Rc7 {[%emt 0:01:37]} 17. Bxd7 {[%emt 0:00:57]} Rxd7 {[%emt 0:00:22]} 18. Bxg7 {[%emt 0:00:07]} Kxg7 {[%emt 0:00:01]} 19. b3 {[%emt 0:00:17]} f5 {[%emt 0:00:30]} 20. Nd5 {[%emt 0:02:03]} e5 {[%emt 0:00:11]} 21. f4 {[%emt 0:00:59]} exf4 {[%emt 0:00:57]} 22. Rxf4 {[%emt 0:00:02]} Qe5 {[%emt 0:00:29]} 23. Rdf1 {[%emt 0:00:40]} Rdf7 {[%emt 0:01:37]} 24. exf5 {[%emt 0:00:49]} Bxd5 {[%emt 0:00:12]} 25. cxd5 {[%emt 0:00:09]} Rxf5 {[%emt 0:00:02]} 26. Rxf5 {[%emt 0:00:06]} gxf5 {[%emt 0:00:45]} 27. Qc7+ {[%emt 0:00:11]} Rf7 {[%emt 0:00:02]} 28. Qxa5 {[%emt 0:00:01]} Qe3+ {[%emt 0:00:07]} 29. Kh1 {[%emt 0:00:02]} Qxb3 {[%emt 0:00:38]} 30. Qd2 {[%emt 0:00:39]} Qg3 {[%emt 0:01:02]} 31. Rf3 {[%emt 0:00:19]} Qh4 {[%emt 0:00:13]} 32. Qc3+ {[%emt 0:00:14]} Kh6 {[%emt 0:00:10]} 33. Qe3+ {[%emt 0:00:37]} f4 {[%emt 0:00:15]} 34. Qe6+ {[%emt 0:00:19]} Qf6 {[%emt 0:00:06]} 35. Rd3 {[%emt 0:00:16]} Kg5 {[%emt 0:00:22]} 36. Kh2 {[%emt 0:00:02]} Re7 {[%emt 0:00:10]} 37. Qg4+ {[%emt 0:00:03]} Kh6 {[%emt 0:00:01]} 38. Rf3 {[%emt 0:00:06]} Re4 {[%emt 0:00:15]} 39. a5 {[%emt 0:00:25]} Rd4 {[%emt 0:00:14]} 40. Qe6 {[%emt 0:00:09]} Qxe6 {[%emt 0:00:09]} 41. dxe6 {[%emt 0:00:01]} Kg5 {[%emt 0:00:03]} 42. Rb3 {[%emt 0:00:06]} Re4 {[%emt 0:00:04]} 43. Rxb7 {[%emt 0:00:07]} Rxe6 {[%emt 0:00:05]} 44. Rxh7 {[%emt 0:00:03]} Re5 {[%emt 0:00:31]} 45. a6 {[%emt 0:00:03]} Ra5 {[%emt 0:00:01]} 46. a7 {[%emt 0:00:07]} Kf6 {[%emt 0:00:04]} 47. h4 {[%emt 0:00:21]} Ra3 {[%emt 0:00:05]} 48. Rd7 {[%emt 0:00:32]} Ke6 {[%emt 0:00:07]} 49. Rb7 {[%emt 0:00:01]} Kf5 {[%emt 0:00:15]} 50. Rd7 {[%emt 0:00:22]} Kg4 {[%emt 0:00:09]} 51. Rxd6 {[%emt 0:00:08]} Rxa7 {[%emt 0:00:01]} 52. Rd4 {[%emt 0:00:03]} Ra2 {[%emt 0:00:11]} 53. h5 {[%emt 0:00:05]} Kg5 {[%emt 0:00:06]} 54. Rd5+ {[%emt 0:00:20]} Kg4 {[%emt 0:00:33]} 55. Rd4 {[%emt 0:00:02]} Ra5 {[%emt 0:00:08]} 56. h6 {[%emt 0:00:23]} Rh5+ {[%emt 0:00:01]} 57. Kg1 {[%emt 0:00:01]} Rxh6 {[%emt 0:00:01]} 58. Rd3 {[%emt 0:00:04]} Ra6 {[%emt 0:00:02]} 59. Kf2 {[%emt 0:00:06]} Ra2+ {[%emt 0:00:02]} 60. Kf1 {[%emt 0:00:01]} Rb2 {[%emt 0:00:15]} 61. Ra3 {[%emt 0:00:04]} Rd2 {[%emt 0:00:05]} 62. Rb3 {[%emt 0:00:09]} Rc2 {[%emt 0:00:39]} 63. Ra3 {[%emt 0:00:03]} Rc6 {[%emt 0:00:15]} 64. Kf2 {[%emt 0:00:09]} Rb6 {[%emt 0:00:02]} 65. Rc3 {[%emt 0:00:05]} Rb2+ {[%emt 0:00:16]} 66. Kf1 {[%emt 0:00:02]} Kh4 {[%emt 0:00:05]} 67. Ra3 {[%emt 0:00:06]} Kg4 {[%emt 0:00:04]} 68. Rc3 {[%emt 0:00:01]} Kf5 {[%emt 0:00:01]} 69. Ra3 {[%emt 0:00:17]} Rd2 {[%emt 0:00:11]} 70. Rb3 {[%emt 0:00:12]} Ke4 {[%emt 0:00:08]} 71. Ra3 {[%emt 0:00:07]} Ke5 {[%emt 0:00:12]} 1/2-1/2

[Event "European Women Rapid-ch 2023"]
[Site "Monaco"]
[Date "2024.01.14"]
[Round "8.21"]
[White "Krasteva, Beloslava"]
[Black "Schulze, Lara"]
[Result "1-0"]
[ECO "E20"]
[WhiteElo "2251"]
[BlackElo "2285"]
[Annotator "RC"]
[PlyCount "73"]
[EventDate "2023.12.19"]
[EventType "swiss"]
[EventCountry "MNC"]
[SourceTitle "playchess.com"]
[Source "ChessBase"]
[SourceQuality "1"]
[TimeControl "900+10"]

1. d4 {[%emt 0:00:09]} Nf6 {[%emt 0:00:01]} 2. c4 {[%emt 0:00:02]} e6 {[%emt 0:00:02]} 3. Nc3 {[%emt 0:00:02]} Bb4 {[%emt 0:00:01]} 4. f3 {[%emt 0:00:05]} c5 {[%emt 0:00:10]} 5. d5 {[%emt 0:00:05]} b5 {[%emt 0:00:06]} 6. e4 {[%emt 0:00:05]} d6 {[%emt 0:00:06]} 7. Nge2 {[%emt 0:00:07]} bxc4 {[%emt 0:00:14]} 8. Nf4 {[%emt 0:00:34]} e5 {[%emt 0:00:01]} 9. Nfe2 {[%emt 0:00:07]} Nbd7 {[%emt 0:00:01]} 10. Ng3 {[%emt 0:00:05]} Nb6 {[%emt 0:00:02]} 11. Be2 {[%emt 0:00:19]} Ng8 {[%emt 0:00:02]} 12. O-O {[%emt 0:00:18]} Ne7 {[%emt 0:00:01]} 13. Rf2 {[%emt 0:04:49]} Ng6 {[%emt 0:00:11]} 14. Nf1 {[%emt 0:00:57]} O-O {[%emt 0:01:20]} 15. Ne3 {[%emt 0:00:15]} Bxc3 {[%emt 0:01:21]} 16. bxc3 {[%emt 0:00:50]} f5 {[%emt 0:00:49]} 17. exf5 {[%emt 0:00:00]} Bxf5 {[%emt 0:00:04]} 18. Nxc4 {[%emt 0:01:03]} Nxc4 {[%emt 0:00:25]} 19. Bxc4 {[%emt 0:00:02]} Qh4 {[%emt 0:01:33]} 20. Bf1 {[%emt 0:00:33]} Rab8 {[%emt 0:01:42]} 21. g3 {[%emt 0:00:53]} Qf6 {[%emt 0:01:07]} 22. Be3 {[%emt 0:00:44]} Rb7 {[%emt 0:00:59]} 23. Qd2 {[%emt 0:01:11]} h6 {[%emt 0:00:51]} 24. h4 {[%emt 0:01:06]} Bd7 {[%emt 0:02:29]} 25. Bd3 {[%emt 0:01:45]} Ne7 {[%emt 0:01:55]} 26. f4 {[%emt 0:00:35]} Nf5 {[%emt 0:01:17]} 27. fxe5 {[%emt 0:00:30]} Qxe5 {[%emt 0:00:11]} 28. Bf4 {[%emt 0:00:13]} Qxd5 {[%emt 0:01:15]} 29. Ba6 {[%emt 0:01:05]} Qxd2 {[%emt 0:00:11]} 30. Rxd2 {[%emt 0:00:02]} Rb6 {[%emt 0:00:11]} 31. Bc4+ {[%emt 0:00:05]} Kh8 {[%emt 0:00:06]} 32. Rad1 {[%emt 0:01:00]} Nxh4 {[%emt 0:00:21]} 33. Rxd6 {[%emt 0:00:39]} Bg4 {[%emt 0:00:47]} 34. Rd8 {[%emt 0:00:15]} Nf3+ {[%emt 0:00:14]} 35. Kf2 {[%emt 0:00:07]} Rb8 {[%emt 0:00:31]} 36. Rxb8 {[%emt 0:00:14]} Rxb8 {[%emt 0:00:04]} 37. Bxb8 {[%emt 0:00:01]} 1-0

[Event "European Women Rapid-ch 2023"]
[Site "Monaco"]
[Date "2024.01.14"]
[Round "8.22"]
[White "Reizniece-Ozola, Dana"]
[Black "Hejazipour, Mitra"]
[Result "0-1"]
[ECO "A22"]
[WhiteElo "2278"]
[BlackElo "2356"]
[Annotator "RC"]
[PlyCount "84"]
[EventDate "2023.12.19"]
[EventType "swiss"]
[EventCountry "MNC"]
[SourceTitle "playchess.com"]
[Source "ChessBase"]
[SourceQuality "1"]
[TimeControl "900+10"]

1. c4 {[%emt 0:00:02]} e5 {[%emt 0:00:06]} 2. Nc3 {[%emt 0:00:05]} Nf6 {[%emt 0:00:02]} 3. g3 {[%emt 0:00:03]} d5 {[%emt 0:00:07]} 4. cxd5 {[%emt 0:00:02]} Nxd5 {[%emt 0:00:02]} 5. Bg2 {[%emt 0:00:02]} Nb6 {[%emt 0:00:02]} 6. e3 {[%emt 0:00:05]} Nc6 {[%emt 0:00:20]} 7. Nge2 {[%emt 0:00:03]} h5 {[%emt 0:00:11]} 8. h3 {[%emt 0:02:19]} Bf5 {[%emt 0:00:28]} 9. d4 {[%emt 0:00:21]} exd4 {[%emt 0:00:50]} 10. Nxd4 {[%emt 0:00:53]} Nxd4 {[%emt 0:00:09]} 11. exd4 {[%emt 0:00:37]} c6 {[%emt 0:00:59]} 12. O-O {[%emt 0:00:24]} Be7 {[%emt 0:01:18]} 13. Re1 {[%emt 0:00:07]} Be6 {[%emt 0:00:29]} 14. Ne4 {[%emt 0:02:38]} h4 {[%emt 0:01:06]} 15. g4 {[%emt 0:00:10]} O-O {[%emt 0:01:08]} 16. Nc5 {[%emt 0:00:27]} Bd5 {[%emt 0:02:11]} 17. Nxb7 {[%emt 0:01:01]} Qc7 {[%emt 0:00:07]} 18. Nc5 {[%emt 0:00:58]} Bxg2 {[%emt 0:00:04]} 19. Kxg2 {[%emt 0:00:02]} Rad8 {[%emt 0:00:11]} 20. Ne4 {[%emt 0:01:03]} c5 {[%emt 0:00:17]} 21. Qc2 {[%emt 0:00:29]} Rxd4 {[%emt 0:00:26]} 22. Ng5 {[%emt 0:00:19]} Qb7+ {[%emt 0:00:28]} 23. Kg1 {[%emt 0:00:12]} Bxg5 {[%emt 0:01:56]} 24. Bxg5 {[%emt 0:00:01]} Qd5 {[%emt 0:01:14]} 25. Bxh4 {[%emt 0:02:18]} Nc4 {[%emt 0:00:07]} 26. Bg3 {[%emt 0:01:08]} Nd2 {[%emt 0:00:17]} 27. Re3 {[%emt 0:01:14]} Nf3+ {[%emt 0:00:10]} 28. Kf1 {[%emt 0:00:01]} Ng5 {[%emt 0:00:46]} 29. Rae1 {[%emt 0:00:09]} Rd2 {[%emt 0:00:12]} 30. Qxd2 {[%emt 0:00:18]} Qxd2 {[%emt 0:00:03]} 31. h4 {[%emt 0:00:14]} Ne6 {[%emt 0:00:08]} 32. R3e2 {[%emt 0:00:39]} Qd5 {[%emt 0:00:03]} 33. Re5 {[%emt 0:00:21]} Qc4+ {[%emt 0:00:23]} 34. Kg2 {[%emt 0:00:06]} Qxg4 {[%emt 0:00:03]} 35. R1e4 {[%emt 0:00:06]} Qd1 {[%emt 0:00:07]} 36. h5 {[%emt 0:00:12]} Rd8 {[%emt 0:00:08]} 37. h6 {[%emt 0:00:20]} gxh6 {[%emt 0:00:11]} 38. Re1 {[%emt 0:00:15]} Qd4 {[%emt 0:00:39]} 39. R5e4 {[%emt 0:00:08]} Qxb2 {[%emt 0:00:11]} 40. Be5 {[%emt 0:00:07]} Qb7 {[%emt 0:00:12]} 41. Kh2 {[%emt 0:00:19]} Ng5 {[%emt 0:00:28]} 42. Rg4 {[%emt 0:00:22]} Kf8 {[%emt 0:00:00]} 0-1

[Event "European Women Rapid-ch 2023"]
[Site "Monaco"]
[Date "2024.01.14"]
[Round "8.23"]
[White "Paasikangas, Johanna"]
[Black "Movsesian, Julia"]
[Result "0-1"]
[ECO "D35"]
[WhiteElo "2038"]
[BlackElo "2257"]
[Annotator "RC"]
[PlyCount "68"]
[EventDate "2023.12.19"]
[EventType "swiss"]
[EventCountry "MNC"]
[SourceTitle "playchess.com"]
[Source "ChessBase"]
[SourceQuality "1"]
[TimeControl "900+10"]

1. d4 {[%emt 0:00:02]} d5 {[%emt 0:00:01]} 2. c4 {[%emt 0:00:08]} e6 {[%emt 0:00:01]} 3. Nc3 {[%emt 0:00:13]} Nf6 {[%emt 0:00:03]} 4. cxd5 {[%emt 0:00:49]} exd5 {[%emt 0:00:02]} 5. Bf4 {[%emt 0:00:44]} c6 {[%emt 0:00:17]} 6. e3 {[%emt 0:00:07]} Bd6 {[%emt 0:00:36]} 7. Bg3 {[%emt 0:00:29]} O-O {[%emt 0:00:09]} 8. Nf3 {[%emt 0:00:11]} a5 {[%emt 0:00:18]} 9. a4 {[%emt 0:01:03]} Na6 {[%emt 0:00:05]} 10. Be2 {[%emt 0:00:23]} Re8 {[%emt 0:00:56]} 11. Ne5 {[%emt 0:01:14]} Nb4 {[%emt 0:00:48]} 12. O-O {[%emt 0:00:17]} Qe7 {[%emt 0:00:11]} 13. Kh1 {[%emt 0:00:24]} Bf5 {[%emt 0:00:08]} 14. Rc1 {[%emt 0:00:35]} Rad8 {[%emt 0:00:10]} 15. f4 {[%emt 0:01:14]} Ne4 {[%emt 0:00:31]} 16. Nxe4 {[%emt 0:01:25]} Bxe4 {[%emt 0:00:02]} 17. Bh5 {[%emt 0:00:28]} g6 {[%emt 0:00:44]} 18. Bf3 {[%emt 0:00:40]} Bf5 {[%emt 0:00:19]} 19. Bg4 {[%emt 0:00:32]} Qe6 {[%emt 0:02:29]} 20. Bxf5 {[%emt 0:00:28]} Qxf5 {[%emt 0:00:04]} 21. Rc3 {[%emt 0:00:21]} Kg7 {[%emt 0:00:33]} 22. Bh4 {[%emt 0:00:13]} Be7 {[%emt 0:00:06]} 23. Bxe7 {[%emt 0:00:05]} Rxe7 {[%emt 0:00:01]} 24. h3 {[%emt 0:00:37]} f6 {[%emt 0:00:53]} 25. Ng4 {[%emt 0:00:22]} Rde8 {[%emt 0:00:05]} 26. Qf3 {[%emt 0:00:23]} Nd3 {[%emt 0:02:48]} 27. Qe2 {[%emt 0:00:15]} Nb4 {[%emt 0:00:32]} 28. Qd2 {[%emt 0:00:28]} h5 {[%emt 0:01:26]} 29. Nf2 {[%emt 0:00:03]} Qd7 {[%emt 0:00:15]} 30. Kh2 {[%emt 0:00:40]} Qc7 {[%emt 0:00:20]} 31. Rg1 {[%emt 0:00:17]} Rxe3 {[%emt 0:00:12]} 32. Nd1 {[%emt 0:01:35]} Re2 {[%emt 0:00:10]} 33. Qc1 {[%emt 0:00:12]} Na2 {[%emt 0:00:01]} 34. Kh1 {[%emt 0:00:43]} Kg8 {[%emt 0:00:10]} 0-1

[Event "European Women Rapid-ch 2023"]
[Site "Monaco"]
[Date "2024.01.14"]
[Round "8.24"]
[White "Lazarne Vajda, Szidonia"]
[Black "Lezhepekova, Veronika"]
[Result "1-0"]
[ECO "B28"]
[WhiteElo "2283"]
[BlackElo "1935"]
[Annotator "RC"]
[PlyCount "97"]
[EventDate "2023.12.19"]
[EventType "swiss"]
[EventCountry "MNC"]
[SourceTitle "playchess.com"]
[Source "ChessBase"]
[SourceQuality "1"]
[TimeControl "900+10"]

1. e4 {[%emt 0:00:01]} c5 {[%emt 0:00:03]} 2. Nf3 {[%emt 0:00:02]} a6 {[%emt 0:00:02]} 3. c3 {[%emt 0:00:05]} d5 {[%emt 0:00:15]} 4. exd5 {[%emt 0:00:02]} Qxd5 {[%emt 0:00:12]} 5. d4 {[%emt 0:00:01]} e6 {[%emt 0:00:19]} 6. Be3 {[%emt 0:00:09]} cxd4 {[%emt 0:00:36]} 7. cxd4 {[%emt 0:00:01]} Nf6 {[%emt 0:00:14]} 8. Nc3 {[%emt 0:00:02]} Qd8 {[%emt 0:00:30]} 9. Bd3 {[%emt 0:00:17]} Nc6 {[%emt 0:00:11]} 10. a3 {[%emt 0:00:08]} b5 {[%emt 0:00:23]} 11. O-O {[%emt 0:00:26]} Bb7 {[%emt 0:00:07]} 12. Qe2 {[%emt 0:00:04]} Be7 {[%emt 0:00:07]} 13. Rad1 {[%emt 0:00:16]} Nd5 {[%emt 0:00:21]} 14. Bc1 {[%emt 0:00:36]} O-O {[%emt 0:00:14]} 15. Ne4 {[%emt 0:00:16]} Rc8 {[%emt 0:00:48]} 16. Rfe1 {[%emt 0:00:04]} Na5 {[%emt 0:00:28]} 17. Bb1 {[%emt 0:02:00]} Nc4 {[%emt 0:02:12]} 18. Neg5 {[%emt 0:02:12]} g6 {[%emt 0:00:30]} 19. h4 {[%emt 0:00:13]} Qc7 {[%emt 0:00:48]} 20. Ne5 {[%emt 0:01:30]} Nxe5 {[%emt 0:00:37]} 21. dxe5 {[%emt 0:00:03]} Qc4 {[%emt 0:00:22]} 22. g3 {[%emt 0:04:18]} Qxe2 {[%emt 0:00:14]} 23. Rxe2 {[%emt 0:00:01]} Rc7 {[%emt 0:00:40]} 24. Ne4 {[%emt 0:00:24]} Rfc8 {[%emt 0:00:44]} 25. Ree1 {[%emt 0:00:38]} b4 {[%emt 0:00:46]} 26. axb4 {[%emt 0:00:46]} Bxb4 {[%emt 0:00:03]} 27. Bd2 {[%emt 0:00:01]} a5 {[%emt 0:01:23]} 28. Bxb4 {[%emt 0:00:24]} axb4 {[%emt 0:00:04]} 29. Nd6 {[%emt 0:00:05]} Ra8 {[%emt 0:00:18]} 30. Rc1 {[%emt 0:00:28]} Rxc1 {[%emt 0:01:05]} 31. Rxc1 {[%emt 0:00:01]} Ba6 {[%emt 0:00:01]} 32. Be4 {[%emt 0:00:46]} Ra7 {[%emt 0:01:33]} 33. Rd1 {[%emt 0:00:50]} Rc7 {[%emt 0:00:52]} 34. Ra1 {[%emt 0:00:34]} Bb7 {[%emt 0:00:45]} 35. Ra7 {[%emt 0:00:29]} Rc1+ {[%emt 0:00:12]} 36. Kh2 {[%emt 0:00:29]} Bc6 {[%emt 0:00:01]} 37. Nxf7 {[%emt 0:00:14]} Bb5 {[%emt 0:00:41]} 38. Nh6+ {[%emt 0:00:12]} Kf8 {[%emt 0:00:12]} 39. Rxh7 {[%emt 0:00:18]} Ne7 {[%emt 0:00:46]} 40. Rf7+ {[%emt 0:00:33]} Ke8 {[%emt 0:00:02]} 41. Rf6 {[%emt 0:00:00]} Re1 {[%emt 0:00:17]} 42. Bxg6+ {[%emt 0:00:20]} Nxg6 {[%emt 0:00:02]} 43. Rxg6 {[%emt 0:00:01]} Rxe5 {[%emt 0:00:03]} 44. Rg4 {[%emt 0:00:06]} Be2 {[%emt 0:01:43]} 45. Rxb4 {[%emt 0:00:02]} Bf3 {[%emt 0:00:09]} 46. Rf4 {[%emt 0:00:20]} Bd1 {[%emt 0:00:06]} 47. Ng4 {[%emt 0:00:11]} Re2 {[%emt 0:00:08]} 48. b4 {[%emt 0:00:19]} Rb2 {[%emt 0:00:06]} 49. Ne3 {[%emt 0:00:07]} 1-0